lending/lending_fUSD_20240206
["ID","MTS","AMOUNT","RATE_DAILY","PERIOD"]
[313360518,1707232243279,-155.20630276,0.00040993,4]
[313360520,1707232243288,-294.08825561,0.00040993,4]
[313360522,1707232243297,-180.80090215,0.00040994,4]
[313360524,1707232243307,-414.75635579,0.00040994,2]
[313360526,1707232243322,-388.21422797,0.00040994,4]
[313360528,1707232243331,-64951.7991817,0.00040994,2]
[313360531,1707232243343,-502615.3115977,0.00040994,2]
[313360533,1707232243353,-5743.06806054,0.00040995,4]
[313360535,1707232243362,-155.0,0.00040995,4]
[313360537,1707232243371,-242.25045307,0.00040995,4]
[313360539,1707232243380,-766.27755389,0.00040995,4]
[313360541,1707232243389,-1049.14158098,0.00040995,4]
[313360543,1707232243399,-1157.90043061,0.00040995,30]
[313360545,1707232243409,-1044.99592506,0.00040995,4]
[313360547,1707232243418,-4501.54867596,0.00040995,4]
[313360549,1707232243427,-505.57440672,0.00040995,4]
[313360551,1707232243435,-2605.36353515,0.00040995,4]
[313360553,1707232243444,-1375.73990957,0.00040995,4]
[313360555,1707232243453,-203.71035368,0.00040995,4]
[313360557,1707232243463,-162.24967733,0.00040995,4]
[313360559,1707232243472,-500.0,0.00040995,4]
[313360561,1707232243480,-165.37513605,0.00040995,4]
[313360563,1707232243489,-4640.60516449,0.00040995,4]
[313360565,1707232243498,-2152.72225271,0.00040995,4]
[313360567,1707232243506,-156.07370626,0.00040995,4]
[313360569,1707232243515,-232.76746862,0.00040995,4]
[313360571,1707232243525,-1181.18217317,0.00040995,4]
[313360572,1707232243533,-522.6703822,0.00040995,4]
[313360575,1707232243543,-9053.50513317,0.00040995,2]
[313360576,1707232243552,-1853.65317375,0.00040996,15]
[313360578,1707232243561,-1858.12367916,0.00040996,4]
[313360580,1707232243572,-155.0,0.00040996,4]
[313360582,1707232243582,-8785.47597358,0.00040997,2]
[313360585,1707232243592,-50705.57475154,0.00040998,3]
[313360587,1707232243601,-169244.59352558,0.00040998,4]
[313360589,1707232243610,-11928.90361073,0.00040998,2]
[313360591,1707232243619,-296.62682089,0.00040999,31]
[313360593,1707232243628,-256.22988246,0.00040999,31]
[313360595,1707232243637,-547.56157126,0.00040999,31]
[313360597,1707232243646,-454.47773265,0.00040999,31]
[313360599,1707232243655,-500.0,0.00040999,31]
[313360601,1707232243665,-150.0,0.00040999,3]
[313360603,1707232243673,-150.0,0.00040999,3]
[313360605,1707232243682,-50000.0,0.00041,21]
[313360607,1707232243691,-750.0,0.00041,3]
[313360609,1707232243701,-319.08758668,0.00041072,4]
[313360610,1707232243710,-3810.3528729,0.00041073,16]
[313360613,1707232243719,-5000.0,0.00041073,35]
[313360615,1707232243729,-33925.64067689,0.00041073,4]
[313360617,1707232243738,-595.89606313,0.00041073,4]
[313360618,1707232243746,-177.76,0.00041096,2]
[313360620,1707232243756,-962.0,0.00041096,30]
[313360622,1707232243765,-150.41,0.0004124,2]
[313360624,1707232243775,-162.30908322,0.00041372,2]
[313360626,1707232243784,-215.93932293,0.00041372,2]
[313360628,1707232243794,-151.0,0.00041386,14]
[313360630,1707232243803,-1774.70819588,0.00041389,3]
[313360632,1707232243812,-5428.05315181,0.00041472,16]
[313360634,1707232243822,-5862.91288185,0.00041472,16]
[313360637,1707232243831,-6784.96728801,0.00041472,16]
[313360639,1707232243840,-184.54398278,0.00041522,4]
[313360640,1707232243850,-5394.55860735,0.00041653,16]
[313360642,1707232243859,-15424.81739601,0.00041705,16]
[313360644,1707232243868,-2836.40887369,0.00041748,16]
[313360646,1707232243877,-582.1650688,0.00041872,14]
[313360649,1707232243886,-5000.0,0.00041879,3]
[313360650,1707232243895,-15697.53868058,0.000419,4]
[313360652,1707232243903,-152.9239484,0.000419,2]
[313360654,1707232243912,-290.06980001,0.00041998,5]
[313360656,1707232243921,-48769.70477134,0.00041999,4]
[313360658,1707232243930,-23675.08103784,0.00042,22]
[313360661,1707232243942,-2362.15178675,0.00042,22]
[313360663,1707232243953,-1171.95,0.00042,22]
[313360831,1707232245562,-667.60753791,0.00025,2]
[313360845,1707232245677,-388.03443371,0.00025,2]
[313360852,1707232245735,-534.33235808,0.00025,2]
[313360854,1707232245744,-202.85936825,0.00025,2]
[313360856,1707232245754,-155.19708348,0.00039906,4]
[313360858,1707232245763,-271.26223485,0.00039906,4]
[313360860,1707232245772,-1166.80131146,0.00039999,4]
[313360902,1707232246152,-1741.51573827,0.00039999,4]
[313360905,1707232246161,-1161.66554933,0.00039999,4]
[313360906,1707232246171,-3000.0,0.00040964,2]
[313360909,1707232246180,-1439.05736907,0.00040964,2]
[313360911,1707232246189,-2928.35118173,0.00040964,4]
[313360912,1707232246198,-1719.68062999,0.00040964,4]
[313360914,1707232246208,-419.32966708,0.00040964,4]
[313360917,1707232246217,-72790.81717541,0.00042,22]
[313360918,1707232246226,-5003.52718166,0.00042,2]
[313360920,1707232246235,-200.0,0.00042,2]
[313360922,1707232246244,-662.03641185,0.00042453,5]
[313360925,1707232246253,-15424.81739601,0.00042514,17]
[313360927,1707232246262,-1000.0,0.000427,2]
[313360929,1707232246272,-8883.87682694,0.00042837,4]
[313360931,1707232246281,-819.88211848,0.00042837,4]
[313360933,1707232246290,-1089.66146486,0.00042837,4]
[313360935,1707232246301,-963.53860935,0.00042837,7]
[313360937,1707232246310,-284.2416514,0.00042837,4]
[313360939,1707232246321,-464.1611082,0.00042837,4]
[313360941,1707232246332,-1149.06000256,0.00042838,4]
[313360943,1707232246340,-180.11477874,0.00042838,7]
[313360945,1707232246349,-1544.67016785,0.00042838,4]
[313360947,1707232246358,-280.0,0.00042872,14]
[313360949,1707232246368,-151.0,0.00042872,14]
[313360951,1707232246377,-151.0,0.00042872,14]
[313360953,1707232246386,-500.0,0.00042873,120]
[313360955,1707232246397,-121121.94789519,0.00042873,24]
[313360990,1707233369167,-250.0,0.00035913,111]
[313360991,1707233369191,-1000.0,0.00036136,120]
[313360992,1707233369219,-282.97394366,0.00042,30]
[313360993,1707233369247,-258.03,0.00042,60]
[313360994,1707233369270,-258.03,0.00042137,60]
[313360995,1707233369294,-258.03,0.00042274,60]
[313360996,1707233369317,-270.98683352,0.00042411,60]
[313360997,1707233369341,-5000.0,0.00042873,35]
[313360998,1707233369364,-150.0,0.00042873,30]
[313360999,1707233369385,-300.0,0.00042873,30]
[313361000,1707233369411,-348.89051711,0.00042987,60]
[313361001,1707233369441,-348.89051711,0.00042998,60]
[313361002,1707233369464,-196.0,0.00043,90]
[313361003,1707233369496,-2405.88873002,0.00044,120]
[313361004,1707233369522,-1251.1161454,0.00044941,120]
[313361005,1707233369547,-100000.0,0.00045,35]
[313361006,1707233369570,-1300.0,0.00045,30]
[313361007,1707233369596,-1000.0,0.00045269,30]
[313361008,1707233369621,-1000.0,0.00045269,30]
[313361009,1707233369644,-1000.0,0.00045269,30]
[313361010,1707233369674,-1000.0,0.00045605,30]
[313361011,1707233369697,-1000.0,0.00045605,30]
[313361012,1707233369720,-1000.0,0.00045605,30]
[313361013,1707233369745,-1000.0,0.00045605,30]
[313361014,1707233369767,-1000.0,0.00045605,30]
[313361015,1707233369791,-1000.0,0.00045605,30]
[313361016,1707233369815,-1000.0,0.00045605,30]
[313361017,1707233369838,-1000.0,0.00045605,30]
[313361018,1707233369861,-1000.0,0.00045605,30]
[313361019,1707233369886,-242.85797109,0.000459,40]
[313361020,1707233369908,-159.48608106,0.00045942,60]
[313361021,1707233369934,-151.47027557,0.00045942,60]
[313361022,1707233370100,-100000.0,0.00046,36]
[313361023,1707233370124,-1000.0,0.00046341,30]
[313361024,1707233370147,-1000.0,0.00046341,30]
[313361025,1707233370170,-1000.0,0.00046341,30]
[313361026,1707233370193,-1000.0,0.00046341,30]
[313361027,1707233370215,-242.85797105,0.0004685,42]
[313361028,1707233370241,-100000.0,0.00047,37]
[313361029,1707233370263,-5000.0,0.00047,30]
[313361030,1707233370285,-348.8905171,0.00047598,60]
[313361031,1707233370309,-242.85797105,0.000478,43]
[313361032,1707233370332,-1090.0,0.00047898,31]
[313361033,1707233370361,-100000.0,0.00048,38]
[313361034,1707233370384,-666.29395341,0.00048027,30]
[313361035,1707233370405,-166.66666666,0.00048033,30]
[313361036,1707233370427,-666.29395341,0.00048086,30]
[313361037,1707233370452,-1948.65038075,0.00048096,30]
[313361038,1707233370474,-666.29395341,0.00048111,30]
[313361039,1707233370497,-666.29395341,0.00048305,30]
[313361040,1707233370521,-666.29395341,0.00048566,30]
[313361041,1707233370543,-1375.0,0.000487,117]
[313361042,1707233370565,-242.85797105,0.0004875,44]
[313361043,1707233370595,-666.29395341,0.00048967,30]
[313361044,1707233370623,-161.5466149,0.00048997,30]
[313361045,1707233370652,-100000.0,0.00049,39]
[313361046,1707233370675,-1000000.0,0.00049,120]
[313361047,1707233370700,-12000.0,0.00049,120]
[313361048,1707233370724,-12000.0,0.00049,120]
[313361049,1707233370749,-343.13,0.00049,120]
[313361050,1707233370772,-300.82104216,0.00049,39]
[313361051,1707233370795,-12000.0,0.0004906,120]
[313361052,1707233370817,-12000.0,0.0004906,120]
[313361053,1707233370840,-166.66666666,0.00049075,30]
[313361054,1707233370863,-59767.236298,0.00049112,120]
[313361055,1707233370885,-12000.0,0.0004912,120]
[313361056,1707233370908,-12000.0,0.0004912,120]
[313361057,1707233370933,-1000.0,0.00049156,30]
[313361058,1707233370957,-12000.0,0.0004918,120]
[313361059,1707233370981,-4377.51,0.0004918,120]
[313361060,1707233371004,-7731.54,0.0004924,120]
[313361061,1707233371028,-1992990.0,0.0004925,120]
[313361062,1707233371050,-1915.0,0.00049252,30]
[313361063,1707233371075,-500.0,0.00049315,120]
[313361064,1707233371126,-541.88997843,0.00049315,30]
[313361065,1707233371230,9548.0,0.00049315,30]
[313361066,1707233374856,150.0,0.00049315,30]
[313361067,1707233381685,3011.8357,0.00042879,120]
[313361068,1707233382825,5000.0,0.00042873,35]
[313361069,1707233383417,4548.2,0.00046726,120]
[313361070,1707233386213,199.104,0.00046726,30]
[313361071,1707233390393,4918.73970281,0.00047,30]
[313361072,1707233390557,1000.0,0.00035394,120]
[313361073,1707233392625,-13457.54877702,0.0004291,120]
[313361074,1707233398825,5000.0,0.00049315,45]
[313361076,1707233416674,-2405.88873002,0.00044,120]
[313361078,1707233416883,-200.0,0.00049315,60]
[313361079,1707233416909,-830000.0,0.000495,120]
[313361080,1707233416934,-242.85797105,0.000497,46]
[313361081,1707233416957,-151.79988206,0.00049726,60]
[313361082,1707233416979,-465.04612891,0.00049726,60]
[313361083,1707233417002,-500.0,0.00049726,60]
[313361084,1707233417024,-500.0,0.00049726,60]
[313361085,1707233417047,-500.0,0.00049726,60]
[313361086,1707233417070,-500.0,0.00049726,60]
[313361087,1707233417092,-203.98030332,0.00049726,60]
[313361088,1707233417113,-500.0,0.00049726,60]
[313361089,1707233417136,-500.0,0.00049726,60]
[313361090,1707233417159,-500.0,0.00049726,60]
[313361091,1707233417183,-500.0,0.00049726,120]
[313361092,1707233417205,-585.93514757,0.00049726,60]
[313361093,1707233417227,-500.25697259,0.00049726,60]
[313361094,1707233417249,-574.17996831,0.00049726,60]
[313361095,1707233417272,-560.64376541,0.00049726,60]
[313361096,1707233417294,-522.0942199,0.00049726,60]
[313361097,1707233417316,-500.0,0.00049726,60]
[313361098,1707233417338,-500.0,0.00049726,60]
[313361099,1707233417360,-500.0,0.00049726,60]
[313361100,1707233417382,-500.0,0.00049726,60]
[313361101,1707233417404,-500.0,0.00049726,60]
[313361102,1707233417426,-500.0,0.00049726,60]
[313361103,1707233417449,-500.0,0.00049726,60]
[313361104,1707233417472,-521.28,0.00049726,60]
[313361105,1707233417495,-500.0,0.00049726,60]
[313361106,1707233417519,-500.0,0.00049726,60]
[313361107,1707233417542,-547.9512407,0.00049726,60]
[313361108,1707233417565,-500.0,0.00049726,60]
[313361109,1707233417588,-500.0,0.00049726,60]
[313361110,1707233417610,-500.0,0.00049726,60]
[313361111,1707233417632,-564.69247967,0.00049726,60]
[313361112,1707233417654,-556.06801303,0.00049726,60]
[313361113,1707233417677,-187.75,0.00049726,60]
[313361114,1707233417701,-500.0,0.00049726,60]
[313361115,1707233417725,-500.0,0.00049726,60]
[313361116,1707233417748,-500.0,0.00049726,60]
[313361117,1707233417774,-500.0,0.00049726,60]
[313361118,1707233417796,-518.85580097,0.00049726,60]
[313361119,1707233417818,-500.0,0.00049726,60]
[313361120,1707233417840,-578.1305968,0.00049726,60]
[313361121,1707233417861,-500.0,0.00049726,60]
[313361122,1707233417883,-500.0,0.00049726,60]
[313361123,1707233417905,-500.0,0.00049726,60]
[313361124,1707233417926,-206.71148824,0.00049726,60]
[313361125,1707233417948,-159.21707047,0.00049726,60]
[313361126,1707233417969,-510.96895248,0.00049726,60]
[313361127,1707233417992,-528.40036666,0.00049726,60]
[313361128,1707233418014,-500.0,0.00049726,60]
[313361129,1707233418036,-578.09787382,0.00049726,60]
[313361130,1707233418058,-536.79152396,0.00049726,60]
[313361131,1707233418079,-598.62919377,0.00049726,60]
[313361132,1707233418101,-397.91340931,0.00049726,60]
[313361133,1707233418123,-574.8240004,0.00049726,60]
[313361134,1707233418145,-155.66637677,0.00049726,60]
[313361135,1707233418168,-606.7153995,0.00049726,60]
[313361136,1707233418190,-604.92086398,0.00049726,60]
[313361137,1707233418212,-418.27107256,0.00049726,60]
[313361138,1707233418234,-500.0,0.00049726,60]
[313361139,1707233418255,-204.34055927,0.00049726,60]
[313361140,1707233418278,-500.0,0.00049726,60]
[313361141,1707233418300,-500.0,0.00049726,60]
[313361142,1707233418320,-427.08619106,0.00049726,60]
[313361143,1707233418342,-395.22509646,0.00049726,60]
[313361144,1707233418365,-500.0,0.00049726,60]
[313361145,1707233418396,-561.44668055,0.00049726,60]
[313361146,1707233418418,-300.4179722,0.00049726,60]
[313361147,1707233418441,-205.94931251,0.00049726,60]
[313361148,1707233418463,-525.53802965,0.00049726,60]
[313361149,1707233418485,-164.60243429,0.00049726,60]
[313361150,1707233418506,-500.0,0.00049726,60]
[313361151,1707233418627,-500.0,0.00049726,60]
[313361152,1707233418649,-202.11,0.00049726,60]
[313361153,1707233418671,-500.0,0.00049726,60]
[313361154,1707233418693,-327.61919991,0.00049726,60]
[313361155,1707233418716,-353.12219893,0.00049726,60]
[313361156,1707233418736,-500.0,0.00049726,60]
[313361157,1707233418770,-500.0,0.00049726,60]
[313361158,1707233418794,-500.0,0.00049726,60]
[313361159,1707233418816,-500.0,0.00049726,60]
[313361160,1707233418839,-382.172453,0.00049726,60]
[313361161,1707233418861,-500.0,0.00049726,60]
[313361162,1707233418884,-500.0,0.00049726,60]
[313361163,1707233418907,-500.0,0.00049726,60]
[313361164,1707233418930,-479.90888037,0.00049726,60]
[313361165,1707233418953,-162.49692335,0.00049726,60]
[313361166,1707233418979,-500.0,0.00049726,60]
[313361167,1707233419004,-534.37242126,0.00049726,60]
[313361168,1707233419033,-604.80265251,0.00049726,60]
[313361169,1707233419059,-500.0,0.00049726,60]
[313361170,1707233419086,-512.33439105,0.00049726,60]
[313361171,1707233419110,-252.02331928,0.00049726,60]
[313361172,1707233419136,-500.0,0.00049726,60]
[313361173,1707233419160,-500.0,0.00049726,60]
[313361174,1707233419183,-164.61712304,0.00049726,60]
[313361175,1707233419206,-500.0,0.00049726,60]
[313361176,1707233419229,-186.07303609,0.00049726,60]
[313361177,1707233419253,-500.0,0.00049726,60]
[313361178,1707233419278,-500.0,0.00049726,60]
[313361179,1707233419302,-500.0,0.00049726,60]
[313361180,1707233419326,-500.0,0.00049726,60]
[313361181,1707233419349,-500.0,0.00049726,60]
[313361182,1707233419372,-215.55611805,0.00049726,60]
[313361183,1707233419395,-187.22330377,0.00049726,60]
[313361184,1707233419417,-500.0,0.00049726,60]
[313361185,1707233419441,-500.0,0.00049726,60]
[313361186,1707233419464,-500.0,0.00049726,60]
[313361187,1707233419486,-647.74716372,0.00049726,60]
[313361188,1707233419515,-641.39587074,0.00049726,60]
[313361189,1707233419538,-162.29536205,0.00049726,60]
[313361190,1707233419561,-500.0,0.00049726,60]
[313361191,1707233419586,-500.0,0.00049726,60]
[313361192,1707233419609,-500.0,0.00049726,60]
[313361193,1707233419632,-500.0,0.00049726,60]
[313361194,1707233419655,-500.0,0.00049726,60]
[313361195,1707233419679,-500.0,0.00049726,60]
[313361196,1707233419705,-627.359303,0.00049726,60]
[313361197,1707233419729,-500.0,0.00049726,60]
[313361198,1707233419751,-150.44300346,0.00049726,60]
[313361199,1707233419774,-500.0,0.00049726,60]
[313361200,1707233419797,-162.25966175,0.00049726,60]
[313361201,1707233419819,-500.0,0.00049726,60]
[313361202,1707233419841,-500.0,0.00049726,60]
[313361203,1707233419864,-500.0,0.00049726,60]
[313361204,1707233419888,-594.99572782,0.00049726,60]
[313361205,1707233419915,-500.0,0.00049726,60]
[313361206,1707233419939,-493.4,0.00049726,60]
[313361207,1707233419962,-564.11914205,0.00049726,60]
[313361208,1707233419985,-500.0,0.00049726,60]
[313361209,1707233420009,-500.0,0.00049726,60]
[313361210,1707233420033,-500.0,0.00049726,60]
[313361211,1707233420057,-182.23878083,0.00049726,60]
[313361212,1707233420080,-500.0,0.00049726,60]
[313361213,1707233420105,-500.0,0.00049726,60]
[313361214,1707233420130,-500.0,0.00049726,60]
[313361215,1707233420154,-500.0,0.00049726,60]
[313361216,1707233420178,-500.0,0.00049726,60]
[313361217,1707233420202,-500.0,0.00049726,60]
[313361218,1707233420225,-500.0,0.00049726,60]
[313361219,1707233420251,-500.0,0.00049726,60]
[313361220,1707233420278,-615.60511459,0.00049726,60]
[313361221,1707233420302,-500.0,0.00049726,60]
[313361222,1707233420326,-500.0,0.00049726,60]
[313361223,1707233420349,-500.0,0.00049726,60]
[313361224,1707233420373,-500.0,0.00049726,60]
[313361225,1707233420396,-546.31778199,0.00049726,60]
[313361226,1707233420419,-500.0,0.00049726,60]
[313361227,1707233420443,-500.0,0.00049726,60]
[313361228,1707233420467,-500.0,0.00049726,60]
[313361229,1707233420492,-500.0,0.00049726,60]
[313361230,1707233420520,-369.40588129,0.00049726,60]
[313361231,1707233420545,-1214.81,0.00049726,60]
[313361232,1707233420569,-500.0,0.00049726,60]
[313361233,1707233420594,-500.0,0.00049726,60]
[313361234,1707233420618,-500.0,0.00049726,60]
[313361235,1707233420642,-150.0,0.00049726,60]
[313361236,1707233420665,-196.2231047,0.00049726,60]
[313361237,1707233420692,-500.0,0.00049726,60]
[313361238,1707233420716,-500.0,0.00049726,60]
[313361239,1707233420742,-500.0,0.00049726,60]
[313361240,1707233420770,-384.70332391,0.00049726,60]
[313361241,1707233420795,-173.41987871,0.00049726,60]
[313361242,1707233420819,-500.0,0.00049726,60]
[313361243,1707233420842,-500.0,0.00049726,60]
[313361244,1707233420866,-173.84924004,0.00049726,60]
[313361245,1707233420889,-561.09,0.00049726,60]
[313361246,1707233420914,-613.91642901,0.00049726,60]
[313361247,1707233420938,-500.0,0.00049726,60]
[313361248,1707233420963,-500.0,0.00049726,60]
[313361249,1707233421116,-500.0,0.00049726,60]
[313361250,1707233421140,-500.0,0.00049726,60]
[313361251,1707233421167,-500.0,0.00049726,60]
[313361252,1707233421190,-260.95830059,0.00049726,60]
[313361253,1707233421214,-500.0,0.00049726,60]
[313361254,1707233421237,-826.53,0.00049726,60]
[313361255,1707233421263,-169.30676714,0.00049726,60]
[313361256,1707233421287,-620.64115385,0.00049726,60]
[313361257,1707233421310,-590.59710202,0.00049726,60]
[313361258,1707233421332,-197.09876754,0.00049726,60]
[313361259,1707233421361,-415.42902338,0.00049726,60]
[313361260,1707233421383,-152.9777883,0.00049726,60]
[313361261,1707233421407,-500.0,0.00049726,60]
[313361262,1707233421429,-500.0,0.00049726,60]
[313361263,1707233421454,-500.0,0.00049726,60]
[313361264,1707233421478,-500.0,0.00049726,60]
[313361265,1707233421500,-153.90839842,0.00049726,60]
[313361266,1707233421524,-568.96366732,0.00049726,60]
[313361267,1707233421546,-500.0,0.00049726,60]
[313361268,1707233421568,-500.0,0.00049726,60]
[313361269,1707233421591,-903.63,0.00049726,60]
[313361270,1707233421614,-555.11501461,0.00049726,60]
[313361271,1707233421636,-500.0,0.00049726,60]
[313361272,1707233421659,-156.09788827,0.00049726,60]
[313361273,1707233421684,-601.04952657,0.00049726,60]
[313361274,1707233421709,-500.0,0.00049726,60]
[313361275,1707233421731,-500.0,0.00049726,60]
[313361276,1707233421754,-233.08908735,0.00049726,60]
[313361277,1707233421779,-179.38791152,0.00049726,60]
[313361278,1707233421803,-306.99345597,0.00049726,60]
[313361279,1707233421826,-312.26486306,0.00049726,60]
[313361280,1707233421850,-500.0,0.00049726,60]
[313361281,1707233421873,-500.0,0.00049726,60]
[313361282,1707233421895,-500.0,0.00049726,60]
[313361283,1707233421919,-500.0,0.00049726,60]
[313361284,1707233421941,-574.95674965,0.00049726,60]
[313361285,1707233421964,-1000.0,0.00049726,60]
[313361286,1707233421986,-168.44734991,0.00049726,60]
[313361287,1707233422010,-500.0,0.00049726,60]
[313361288,1707233422034,-500.0,0.00049726,60]
[313361289,1707233422058,-500.0,0.00049726,60]
[313361290,1707233422081,-534.21501441,0.00049726,60]
[313361291,1707233422104,-500.0,0.00049726,60]
[313361292,1707233422126,-186.20504194,0.00049726,60]
[313361293,1707233422150,-500.0,0.00049726,60]
[313361294,1707233422176,-598.02911049,0.00049726,60]
[313361295,1707233422201,-500.0,0.00049726,60]
[313361296,1707233422225,-500.0,0.00049726,60]
[313361297,1707233422246,-500.0,0.00049726,60]
[313361298,1707233422268,-547.24086541,0.00049726,60]
[313361299,1707233422290,-2440.04,0.00049726,60]
[313361300,1707233422313,-500.0,0.00049726,60]
[313361301,1707233422335,-606.65,0.00049726,60]
[313361302,1707233422357,-500.0,0.00049726,60]
[313361303,1707233422379,-500.0,0.00049726,60]
[313361304,1707233422401,-500.0,0.00049726,60]
[313361305,1707233422424,-500.0,0.00049726,60]
[313361306,1707233422446,-500.0,0.00049726,60]
[313361307,1707233422468,-500.0,0.00049726,60]
[313361308,1707233422491,-500.0,0.00049726,60]
[313361309,1707233422514,-258.23134314,0.00049726,60]
[313361310,1707233422537,-258.76347356,0.00049726,60]
[313361311,1707233422560,-500.0,0.00049726,60]
[313361312,1707233422584,-500.0,0.00049726,60]
[313361313,1707233422609,-500.0,0.00049726,60]
[313361314,1707233422632,-500.0,0.00049726,60]
[313361315,1707233422655,-500.0,0.00049726,60]
[313361316,1707233422680,-528.95946316,0.00049726,60]
[313361317,1707233422704,-500.0,0.00049726,60]
[313361318,1707233422727,-500.0,0.00049726,60]
[313361319,1707233422751,-500.0,0.00049726,60]
[313361320,1707233422777,-500.0,0.00049726,60]
[313361321,1707233422799,-555.55817229,0.00049726,60]
[313361322,1707233422822,-609.07949227,0.00049726,60]
[313361323,1707233422844,-500.0,0.00049726,60]
[313361324,1707233422868,-500.0,0.00049726,60]
[313361325,1707233422891,-500.0,0.00049726,60]
[313361326,1707233422913,-500.0,0.00049726,60]
[313361327,1707233422934,-515.24322775,0.00049726,60]
[313361328,1707233422955,-480.77688833,0.00049726,60]
[313361329,1707233422977,-500.0,0.00049726,60]
[313361330,1707233422999,-500.0,0.00049726,60]
[313361331,1707233423022,-500.0,0.00049726,60]
[313361332,1707233423044,-150.0,0.00049726,60]
[313361333,1707233423066,-500.0,0.00049726,60]
[313361334,1707233423087,-500.0,0.00049726,60]
[313361335,1707233423109,-500.0,0.00049726,60]
[313361336,1707233423131,-500.0,0.00049726,60]
[313361337,1707233423153,-500.0,0.00049726,60]
[313361338,1707233423175,-500.0,0.00049726,60]
[313361339,1707233423198,-500.0,0.00049726,60]
[313361340,1707233423220,-293.57266686,0.00049726,60]
[313361341,1707233423241,-500.0,0.00049726,60]
[313361342,1707233423263,-622.75272467,0.00049726,60]
[313361343,1707233423393,-500.0,0.00049726,60]
[313361344,1707233423418,-500.0,0.00049726,60]
[313361345,1707233423439,-500.0,0.00049726,60]
[313361346,1707233423461,-159.16290618,0.00049726,60]
[313361347,1707233423487,-500.0,0.00049726,60]
[313361348,1707233423510,-500.0,0.00049726,60]
[313361349,1707233423534,-500.0,0.00049726,60]
[313361350,1707233423556,-500.0,0.00049726,60]
[313361351,1707233423577,-544.86772045,0.00049726,60]
[313361352,1707233423599,-500.0,0.00049726,60]
[313361353,1707233423621,-596.49441379,0.00049726,60]
[313361354,1707233423642,-500.0,0.00049726,60]
[313361355,1707233423664,-500.0,0.00049726,60]
[313361356,1707233423689,-500.0,0.00049726,60]
[313361357,1707233423711,-500.0,0.00049726,60]
[313361358,1707233423734,-500.0,0.00049726,60]
[313361359,1707233423757,-947.83,0.00049726,60]
[313361360,1707233423782,-500.0,0.00049726,60]
[313361361,1707233423803,-500.0,0.00049726,60]
[313361362,1707233423825,-758.62,0.00049726,60]
[313361363,1707233423847,-500.0,0.00049726,60]
[313361364,1707233423870,-659.18,0.00049726,60]
[313361365,1707233423892,-500.0,0.00049726,60]
[313361366,1707233423914,-600.44545889,0.00049726,60]
[313361367,1707233423936,-500.0,0.00049726,60]
[313361368,1707233423958,-500.0,0.00049726,60]
[313361369,1707233423980,-500.0,0.00049726,60]
[313361370,1707233424002,-577.46444751,0.00049726,60]
[313361371,1707233424025,-500.0,0.00049726,60]
[313361372,1707233424047,-500.0,0.00049726,60]
[313361373,1707233424071,-500.0,0.00049726,60]
[313361374,1707233424093,-183.23046551,0.00049726,60]
[313361375,1707233424115,-627.94291869,0.00049726,60]
[313361376,1707233424138,-500.0,0.00049726,60]
[313361377,1707233424162,-500.0,0.00049726,60]
[313361378,1707233424186,-500.0,0.00049726,60]
[313361379,1707233424209,-500.0,0.00049726,60]
[313361380,1707233424232,-271.6647608,0.00049726,60]
[313361381,1707233424255,-500.0,0.00049726,60]
[313361382,1707233424278,-500.0,0.00049726,60]
[313361383,1707233424300,-500.0,0.00049726,60]
[313361384,1707233424324,-500.0,0.00049726,60]